[Event "RUS-ch Women Rapid 2019"]
[Site "Sochi"]
[Date "2019.10.16"]
[Round "10.5"]
[White "Ambartsumova, Karina"]
[Black "Ovod, Evgenija"]
[Result "1/2-1/2"]
[ECO "A13"]
[WhiteElo "2336"]
[BlackElo "2347"]
[Annotator "NA"]
[PlyCount "84"]
[EventDate "2019.10.15"]
[EventType "swiss"]
[EventCountry "RUS"]
[SourceTitle "playchess.com"]
[Source "ChessBase"]
[SourceQuality "1"]
[TimeControl "900+10"]

1. Nf3 {[%emt 0:00:00]} d5 {[%emt 0:00:00]} 2. c4 {[%emt 0:00:00]} e6 {[%emt 0:00:00]} 3. g3 {[%emt 0:00:25]} Nf6 {[%emt 0:00:00]} 4. Bg2 {[%emt 0:00:04]} dxc4 {[%emt 0:00:02]} 5. Qa4+ {[%emt 0:00:05]} Nbd7 {[%emt 0:00:08]} 6. Qxc4 {[%emt 0:00:07]} c5 {[%emt 0:00:20]} 7. O-O {[%emt 0:00:40]} b6 {[%emt 0:00:38]} 8. Nc3 {[%emt 0:05:35]} Bb7 {[%emt 0:00:13]} 9. e4 {[%emt 0:00:33]} a6 {[%emt 0:02:06]} 10. a4 {[%emt 0:00:28]} Rc8 {[%emt 0:01:56]} 11. b3 {[%emt 0:01:01]} Be7 {[%emt 0:02:19]} 12. Bb2 {[%emt 0:01:27]} Ng4 {[%emt 0:01:18]} 13. Qe2 {[%emt 0:00:49]} Bf6 {[%emt 0:03:48]} 14. Rfd1 {[%emt 0:02:23]} Nge5 {[%emt 0:00:48]} 15. d3 {[%emt 0:01:08]} Nxf3+ {[%emt 0:00:18]} 16. Bxf3 {[%emt 0:00:25]} Ne5 {[%emt 0:00:03]} 17. Bg2 {[%emt 0:00:15]} Nc6 {[%emt 0:00:28]} 18. e5 {[%emt 0:01:02]} Nd4 {[%emt 0:00:03]} 19. Qe3 {[%emt 0:00:04]} Bxg2 {[%emt 0:00:15]} 20. exf6 {[%emt 0:00:45]} Ba8 {[%emt 0:01:49]} 21. fxg7 {[%emt 0:00:30]} Rg8 {[%emt 0:00:09]} 22. Ne4 {[%emt 0:00:18]} f5 {[%emt 0:00:26]} 23. Ng5 {[%emt 0:00:33]} Qd5 {[%emt 0:00:40]} 24. f3 {[%emt 0:00:01]} Nc2 {[%emt 0:00:45]} 25. Qxe6+ {[%emt 0:00:02]} Qxe6 {[%emt 0:00:01]} 26. Nxe6 {[%emt 0:00:02]} Nxa1 {[%emt 0:00:01]} 27. Bxa1 {[%emt 0:00:07]} Bxf3 {[%emt 0:00:07]} 28. Re1 {[%emt 0:00:02]} Kd7 {[%emt 0:00:10]} 29. Nf8+ {[%emt 0:00:33]} Rcxf8 {[%emt 0:00:23]} 30. gxf8=Q {[%emt 0:00:03]} Rxf8 {[%emt 0:00:01]} 31. d4 {[%emt 0:00:29]} cxd4 {[%emt 0:00:16]} 32. Bxd4 {[%emt 0:00:03]} b5 {[%emt 0:00:04]} 33. axb5 {[%emt 0:00:06]} axb5 {[%emt 0:00:01]} 34. Bc5 {[%emt 0:00:08]} Re8 {[%emt 0:00:06]} 35. Rxe8 {[%emt 0:00:13]} Kxe8 {[%emt 0:00:01]} 36. Kf2 {[%emt 0:00:03]} Bd1 {[%emt 0:00:04]} 37. b4 {[%emt 0:00:01]} Kf7 {[%emt 0:00:01]} 38. Ke3 {[%emt 0:00:01]} Bc2 {[%emt 0:00:05]} 39. Kf4 {[%emt 0:00:05]} Kg6 {[%emt 0:00:02]} 40. Be3 {[%emt 0:00:06]} h5 {[%emt 0:00:03]} 41. Ke5 {[%emt 0:00:04]} Bd3 {[%emt 0:00:01]} 42. Kd5 {[%emt 0:00:06]} Bc4+ {[%emt 0:00:02] Ke4} 1/2-1/2

[Event "RUS-ch Women Rapid 2019"]
[Site "Sochi"]
[Date "2019.10.16"]
[Round "10.7"]
[White "Kovanova, Baira"]
[Black "Bykova, Anastasia"]
[Result "1-0"]
[ECO "A06"]
[WhiteElo "2288"]
[BlackElo "2247"]
[Annotator "NA"]
[PlyCount "85"]
[EventDate "2019.10.15"]
[EventType "swiss"]
[EventCountry "RUS"]
[SourceTitle "playchess.com"]
[Source "ChessBase"]
[SourceQuality "1"]
[TimeControl "900+10"]

1. Nf3 {[%emt 0:00:00]} d5 {[%emt 0:00:00]} 2. e3 {[%emt 0:00:22]} Nf6 {[%emt 0:00:00]} 3. c4 {[%emt 0:00:01]} c6 {[%emt 0:00:00]} 4. Nc3 {[%emt 0:00:09]} g6 {[%emt 0:00:00]} 5. b3 {[%emt 0:00:24]} Bg7 {[%emt 0:00:00]} 6. Bb2 {[%emt 0:00:01]} O-O {[%emt 0:00:04]} 7. Be2 {[%emt 0:00:02]} Bg4 {[%emt 0:00:23]} 8. d4 {[%emt 0:00:26]} Re8 {[%emt 0:00:17]} 9. O-O {[%emt 0:00:10]} Nbd7 {[%emt 0:00:14]} 10. cxd5 {[%emt 0:00:24]} Nxd5 {[%emt 0:00:23]} 11. Rc1 {[%emt 0:01:16]} Nxc3 {[%emt 0:00:52]} 12. Bxc3 {[%emt 0:00:02]} Nf6 {[%emt 0:00:20]} 13. h3 {[%emt 0:00:17]} Bf5 {[%emt 0:00:11]} 14. Ne5 {[%emt 0:00:30]} a5 {[%emt 0:01:23]} 15. Bc4 {[%emt 0:00:47]} Nd5 {[%emt 0:00:05]} 16. Bb2 {[%emt 0:00:28]} Be6 {[%emt 0:01:47]} 17. Qf3 {[%emt 0:00:32]} Rf8 {[%emt 0:02:11]} 18. Rfd1 {[%emt 0:00:13]} Nc7 {[%emt 0:00:33]} 19. e4 {[%emt 0:02:09]} Bxc4 {[%emt 0:00:57]} 20. Nxc4 {[%emt 0:00:02]} Nb5 {[%emt 0:00:14]} 21. d5 {[%emt 0:00:45]} Bxb2 {[%emt 0:01:05]} 22. Nxb2 {[%emt 0:00:01]} cxd5 {[%emt 0:01:47]} 23. Rxd5 {[%emt 0:01:06]} Qb6 {[%emt 0:00:02]} 24. Na4 {[%emt 0:02:03]} Qa6 {[%emt 0:00:15]} 25. Nc5 {[%emt 0:02:54]} Qc6 {[%emt 0:00:14]} 26. Nd3 {[%emt 0:00:21]} Qe8 {[%emt 0:02:28]} 27. Ne5 {[%emt 0:00:17]} Nd6 {[%emt 0:00:07]} 28. Rc7 {[%emt 0:01:00]} Rc8 {[%emt 0:00:41]} 29. Rdc5 {[%emt 0:00:17]} Rxc7 {[%emt 0:01:09]} 30. Rxc7 {[%emt 0:00:01]} Qd8 {[%emt 0:00:08]} 31. Rc1 {[%emt 0:00:44]} Qa8 {[%emt 0:00:28]} 32. Ng4 {[%emt 0:01:11]} Rc8 {[%emt 0:00:22]} 33. Rd1 {[%emt 0:00:01]} Qa6 {[%emt 0:00:44]} 34. Nh6+ {[%emt 0:00:21]} Kg7 {[%emt 0:00:03]} 35. e5 {[%emt 0:00:01]} Kxh6 {[%emt 0:00:52]} 36. exd6 {[%emt 0:00:01]} exd6 {[%emt 0:00:07]} 37. Qxf7 {[%emt 0:00:02]} Qe2 {[%emt 0:00:32]} 38. Qf4+ {[%emt 0:00:10]} Kg7 {[%emt 0:00:01]} 39. Rxd6 {[%emt 0:00:04]} Qe1+ {[%emt 0:00:09]} 40. Kh2 {[%emt 0:00:02]} Qe7 {[%emt 0:00:20]} 41. Qd4+ {[%emt 0:00:06]} Kh6 {[%emt 0:00:10]} 42. Rd7 {[%emt 0:00:28]} Qf8 {[%emt 0:00:11]} 43. Qh4# {[%emt 0:00:04]} 1-0

[Event "RUS-ch Women Rapid 2019"]
[Site "Sochi"]
[Date "2019.10.16"]
[Round "10.8"]
[White "Fominykh, Maria"]
[Black "Bivol, Alina"]
[Result "1/2-1/2"]
[ECO "A48"]
[WhiteElo "2206"]
[BlackElo "2283"]
[Annotator "NA RC"]
[PlyCount "148"]
[EventDate "2019.10.15"]
[EventType "swiss"]
[EventCountry "RUS"]
[SourceTitle "playchess.com"]
[Source "ChessBase"]
[SourceQuality "1"]
[TimeControl "900+10"]

1. d4 {[%emt 0:00:00]} Nf6 {[%emt 0:00:00]} 2. Nf3 {[%emt 0:00:00]} g6 {[%emt 0:00:00]} 3. c4 {[%emt 0:00:00]} Bg7 {[%emt 0:00:00]} 4. Nc3 {[%emt 0:00:00]} O-O {[%emt 0:00:00]} 5. e4 {[%emt 0:00:01]} d6 {[%emt 0:00:00]} 6. h3 {[%emt 0:00:04]} c5 {[%emt 0:00:45]} 7. Be3 {[%emt 0:00:31]} cxd4 {[%emt 0:00:03]} 8. Nxd4 {[%emt 0:00:05]} Nc6 {[%emt 0:00:06]} 9. Be2 {[%emt 0:00:11]} Bd7 {[%emt 0:00:23]} 10. O-O {[%emt 0:00:04]} Rc8 {[%emt 0:00:32]} 11. Rc1 {[%emt 0:00:15]} b6 {[%emt 0:01:08]} 12. Nc2 {[%emt 0:03:08]} Na5 {[%emt 0:00:50]} 13. Na3 {[%emt 0:00:26]} Bc6 {[%emt 0:00:31]} 14. b4 {[%emt 0:00:47]} Nb7 {[%emt 0:00:01]} 15. Bd3 {[%emt 0:00:26]} Bd7 {[%emt 0:00:36]} 16. Nab5 {[%emt 0:00:42]} a6 {[%emt 0:00:51]} 17. Nd4 {[%emt 0:00:01]} Nh5 {[%emt 0:00:53]} 18. Nb3 {[%emt 0:02:13]} e6 {[%emt 0:00:35]} 19. Be2 {[%emt 0:00:38]} b5 {[%emt 0:02:22]} 20. c5 {[%emt 0:00:54]} dxc5 {[%emt 0:00:20]} 21. Nxc5 {[%emt 0:00:02]} Nxc5 {[%emt 0:01:44]} 22. Bxc5 {[%emt 0:00:53]} Re8 {[%emt 0:00:24]} 23. Bxh5 {[%emt 0:00:08]} gxh5 {[%emt 0:00:01]} 24. Qxh5 {[%emt 0:00:09]} Bc6 {[%emt 0:00:01]} 25. Rfd1 {[%emt 0:00:22]} Qf6 {[%emt 0:00:32]} 26. Rd3 {[%emt 0:00:51]} Qg6 {[%emt 0:00:25]} 27. Qe2 {[%emt 0:00:32]} Qh6 {[%emt 0:00:38]} 28. Rcd1 {[%emt 0:00:19]} Kh8 {[%emt 0:01:07]} 29. Rg3 {[%emt 0:00:55]} Rg8 {[%emt 0:00:35]} 30. e5 {[%emt 0:01:02]} Qf4 {[%emt 0:00:27]} 31. Bd6 {[%emt 0:00:35]} Bh6 {[%emt 0:00:41]} 32. Rdd3 {[%emt 0:01:42]} Rxg3 {[%emt 0:00:39]} 33. fxg3 {[%emt 0:00:14]} Qc1+ {[%emt 0:01:13]} 34. Kh2 {[%emt 0:01:07]} Bb7 {[%emt 0:00:36]} 35. Bc5 {[%emt 0:00:18]} Bg7 {[%emt 0:01:00]} 36. Be3 {[%emt 0:01:13]} Qa1 {[%emt 0:00:09]} 37. Bd4 {[%emt 0:00:03]} Qc1 {[%emt 0:00:07]} 38. Rd1 {[%emt 0:00:06]} Qa3 {[%emt 0:00:15]} 39. Ne4 {[%emt 0:00:08]} Bxe4 {[%emt 0:00:48]} 40. Qxe4 {[%emt 0:00:02]} Qxb4 {[%emt 0:00:01]} 41. Qb7 {[%emt 0:00:08]} Rf8 {[%emt 0:00:10]} 42. Qxa6 {[%emt 0:00:12]} h6 {[%emt 0:00:02]} 43. Qa7 {[%emt 0:00:16]} Qa4 {[%emt 0:00:20]} 44. Qxa4 {[%emt 0:00:12]} bxa4 {[%emt 0:00:00]} 45. Rb1 {[%emt 0:00:19]} Rd8 {[%emt 0:00:10]} 46. Rb4 {[%emt 0:00:08]} a3 {[%emt 0:00:01]} 47. Ra4 {[%emt 0:00:04]} Rd5 {[%emt 0:00:17]} 48. Kg1 {[%emt 0:00:13]} Kh7 {[%emt 0:00:02]} 49. Kf2 {[%emt 0:00:06]} h5 {[%emt 0:00:20]} 50. Kf3 {[%emt 0:00:12]} Bxe5 {[%emt 0:00:15]} 51. Bxe5 {[%emt 0:00:01]} Rxe5 {[%emt 0:00:00]} 52. Rxa3 {[%emt 0:00:01]} Re1 {[%emt 0:00:07]} 53. g4 {[%emt 0:00:12]} h4 {[%emt 0:00:17]} 54. Ra7 {[%emt 0:00:37]} Kg6 {[%emt 0:00:01]} 55. a4 {[%emt 0:00:07]} Ra1 {[%emt 0:00:10]} 56. a5 {[%emt 0:00:06]} Ra3+ {[%emt 0:00:23]} 57. Ke4 {[%emt 0:00:16]} Ra2 {[%emt 0:00:01]} 58. Kf3 {[%emt 0:00:02]} Ra3+ {[%emt 0:00:01]} 59. Ke4 {[%emt 0:00:02]} Ra2 {[%emt 0:00:01]} 60. a6 {[%emt 0:00:23]} Rxg2 {[%emt 0:00:10]} 61. Rc7 {[%emt 0:00:15]} Ra2 {[%emt 0:00:02]} 62. a7 {[%emt 0:00:00]} f5+ {[%emt 0:00:20]} 63. gxf5+ {[%emt 0:00:04]} exf5+ {[%emt 0:00:00]} 64. Ke5 {[%emt 0:00:05]} Ra5+ {[%emt 0:00:02]} 65. Kd6 {[%emt 0:00:06]} f4 {[%emt 0:00:12]} 66. Kc6 {[%emt 0:00:26]} f3 {[%emt 0:00:02]} 67. Kb6 {[%emt 0:00:03]} f2 {[%emt 0:00:49]} 68. Rc1 Ra2 69. Rf1 {[%emt 0:00:19]} Rb2+ {[%emt 0:00:04]} 70. Kc6 {[%emt 0:00:10]} Ra2 {[%emt 0:00:02]} 71. Kb7 {[%emt 0:00:11]} Rb2+ {[%emt 0:00:01]} 72. Kc7 {[%emt 0:00:12]} Ra2 {[%emt 0:00:01]} 73. Kb6 {[%emt 0:00:04]} Rb2+ {[%emt 0:00:02]} 74. Kc6 {[%emt 0:00:11]} Ra2 {[%emt 0:00:02]} 1/2-1/2

[Event "RUS-ch Women Rapid 2019"]
[Site "Sochi"]
[Date "2019.10.16"]
[Round "10.9"]
[White "Vasilevich, Tatjana"]
[Black "Styazhkina, Anna"]
[Result "0-1"]
[ECO "A06"]
[WhiteElo "2265"]
[BlackElo "2280"]
[Annotator "NA"]
[PlyCount "98"]
[EventDate "2019.10.15"]
[EventType "swiss"]
[EventCountry "RUS"]
[SourceTitle "playchess.com"]
[Source "ChessBase"]
[SourceQuality "1"]
[TimeControl "900+10"]

1. Nf3 {[%emt 0:00:00]} d5 {[%emt 0:00:00]} 2. g3 {[%emt 0:00:00]} c6 {[%emt 0:00:00]} 3. Bg2 {[%emt 0:00:00]} Bg4 {[%emt 0:00:00]} 4. O-O {[%emt 0:00:00]} Nd7 {[%emt 0:00:00]} 5. d3 {[%emt 0:00:05]} e6 {[%emt 0:00:02]} 6. Nbd2 {[%emt 0:00:16]} Bd6 {[%emt 0:00:01]} 7. e4 {[%emt 0:00:05]} Ne7 {[%emt 0:00:02]} 8. Re1 {[%emt 0:00:09]} O-O {[%emt 0:00:07]} 9. Qe2 {[%emt 0:00:07]} h6 {[%emt 0:02:28]} 10. h3 {[%emt 0:00:14]} Bh5 {[%emt 0:00:09]} 11. Nf1 {[%emt 0:00:42]} Re8 {[%emt 0:02:54]} 12. g4 {[%emt 0:00:41]} Bg6 {[%emt 0:00:01]} 13. e5 {[%emt 0:00:01]} Bc7 {[%emt 0:00:09]} 14. Bf4 {[%emt 0:01:18]} c5 {[%emt 0:00:10]} 15. c4 {[%emt 0:05:22]} Nc6 {[%emt 0:00:55]} 16. Bg3 {[%emt 0:00:47]} Nb6 {[%emt 0:00:20]} 17. Red1 {[%emt 0:00:32]} Qd7 {[%emt 0:02:12]} 18. Rac1 {[%emt 0:00:19]} Rad8 {[%emt 0:00:07]} 19. b3 {[%emt 0:02:10]} a5 {[%emt 0:01:16]} 20. Ne3 {[%emt 0:02:04]} a4 {[%emt 0:00:49]} 21. cxd5 {[%emt 0:00:20]} exd5 {[%emt 0:00:43]} 22. Rxc5 {[%emt 0:00:15]} axb3 {[%emt 0:00:13]} 23. axb3 {[%emt 0:00:12]} d4 {[%emt 0:04:04]} 24. Nc4 {[%emt 0:00:39]} Nd5 {[%emt 0:00:11]} 25. Qb2 {[%emt 0:01:24]} b6 {[%emt 0:01:40]} 26. Rxc6 {[%emt 0:01:06]} Qxc6 {[%emt 0:00:02]} 27. Nxd4 {[%emt 0:00:09]} Qc5 {[%emt 0:00:18]} 28. Nf3 {[%emt 0:00:15]} b5 {[%emt 0:00:09]} 29. d4 {[%emt 0:00:09]} Qb4 {[%emt 0:00:10]} 30. Ne3 {[%emt 0:00:17]} Nc3 {[%emt 0:00:12]} 31. Rc1 {[%emt 0:00:07]} Ba5 {[%emt 0:00:20]} 32. Nh4 {[%emt 0:00:09]} Bd3 {[%emt 0:00:10]} 33. Kh2 {[%emt 0:00:15]} Ne2 {[%emt 0:00:17]} 34. Rd1 {[%emt 0:00:11]} Rxd4 {[%emt 0:00:18]} 35. Nd5 {[%emt 0:00:16]} Qc5 {[%emt 0:00:08]} 36. Rxd3 {[%emt 0:00:10]} Rxd3 {[%emt 0:00:01]} 37. b4 Bxb4 {[%emt 0:00:14]} 38. Nxb4 {[%emt 0:00:07]} Rc3 {[%emt 0:00:16]} 39. Na6 {[%emt 0:00:16]} Rc2 {[%emt 0:00:06]} 40. Qb3 {[%emt 0:00:12]} Qc4 {[%emt 0:00:11]} 41. Qe3 {[%emt 0:00:11]} Nxg3 {[%emt 0:00:08]} 42. Qxg3 {[%emt 0:00:02]} Ra2 {[%emt 0:00:08]} 43. Bb7 {[%emt 0:00:09]} Re6 {[%emt 0:00:16]} 44. Qf3 {[%emt 0:00:21]} Rexa6 {[%emt 0:00:05]} 45. Bd5 {[%emt 0:00:03]} Qc7 {[%emt 0:00:04]} 46. Nf5 {[%emt 0:00:09]} R2a3 {[%emt 0:00:06]} 47. Qe4 {[%emt 0:00:07]} R6a4 {[%emt 0:00:12]} 48. Qe1 {[%emt 0:00:12]} Qc3 {[%emt 0:00:21]} 49. Qxc3 {[%emt 0:00:35]} Rxc3 {[%emt 0:00:10]} 0-1

[Event "RUS-ch Women Rapid 2019"]
[Site "Sochi"]
[Date "2019.10.16"]
[Round "10.10"]
[White "Borisova, Ekaterina"]
[Black "Murashova, Ekaterina"]
[Result "1-0"]
[ECO "A40"]
[WhiteElo "2347"]
[BlackElo "2248"]
[Annotator "NA"]
[PlyCount "35"]
[EventDate "2019.10.15"]
[EventType "swiss"]
[EventCountry "RUS"]
[SourceTitle "playchess.com"]
[Source "ChessBase"]
[SourceQuality "1"]
[TimeControl "900+10"]

1. d4 {[%emt 0:00:00]} g6 {[%emt 0:00:00]} 2. c4 {[%emt 0:00:00]} Bg7 {[%emt 0:00:00]} 3. g3 {[%emt 0:00:00]} d6 {[%emt 0:00:09]} 4. Nf3 {[%emt 0:00:10]} Nd7 {[%emt 0:00:58]} 5. Bg2 {[%emt 0:00:04]} e5 {[%emt 0:00:01]} 6. Nc3 {[%emt 0:00:01]} Ne7 {[%emt 0:00:11]} 7. O-O {[%emt 0:00:03]} O-O {[%emt 0:00:02]} 8. e4 {[%emt 0:00:02]} h6 {[%emt 0:00:26]} 9. Be3 {[%emt 0:00:07]} f5 {[%emt 0:01:43]} 10. Qd2 {[%emt 0:01:37]} Kh7 {[%emt 0:01:23]} 11. Rad1 {[%emt 0:00:30]} fxe4 {[%emt 0:00:19]} 12. Nxe4 {[%emt 0:00:06]} Nf5 {[%emt 0:00:01]} 13. dxe5 {[%emt 0:00:55]} Nxe3 {[%emt 0:00:46]} 14. Qxe3 {[%emt 0:00:08]} Nxe5 {[%emt 0:00:03]} 15. Nxe5 {[%emt 0:00:12]} Bxe5 {[%emt 0:00:01]} 16. c5 {[%emt 0:00:36]} Qe7 {[%emt 0:02:35]} 17. f4 {[%emt 0:00:33]} Bxb2 {[%emt 0:00:09]} 18. Ng5+ {[%emt 0:00:09]} 1-0

[Event "RUS-ch Women Rapid 2019"]
[Site "Sochi"]
[Date "2019.10.16"]
[Round "10.11"]
[White "Filippova, Darya"]
[Black "Gritsayeva, Oksana"]
[Result "1/2-1/2"]
[ECO "A30"]
[WhiteElo "2034"]
[BlackElo "2260"]
[Annotator "NA"]
[PlyCount "128"]
[EventDate "2019.10.15"]
[EventType "swiss"]
[EventCountry "RUS"]
[SourceTitle "playchess.com"]
[Source "ChessBase"]
[SourceQuality "1"]
[TimeControl "900+10"]

1. c4 {[%emt 0:00:00]} Nf6 {[%emt 0:00:00]} 2. Nc3 {[%emt 0:00:00]} c5 {[%emt 0:00:06]} 3. g3 {[%emt 0:00:05]} e6 {[%emt 0:00:07]} 4. Nf3 {[%emt 0:00:12]} b6 {[%emt 0:00:06]} 5. Bg2 {[%emt 0:00:13]} Bb7 {[%emt 0:00:02]} 6. O-O {[%emt 0:00:14]} Be7 {[%emt 0:00:03]} 7. Re1 {[%emt 0:00:19]} Ne4 {[%emt 0:00:11]} 8. d4 {[%emt 0:01:17]} Nxc3 {[%emt 0:01:09]} 9. bxc3 {[%emt 0:00:02]} d6 {[%emt 0:00:47]} 10. Qa4+ {[%emt 0:00:53]} Qd7 {[%emt 0:01:01]} 11. Qc2 {[%emt 0:00:11]} Nc6 {[%emt 0:00:28]} 12. d5 {[%emt 0:00:53]} Na5 {[%emt 0:00:18]} 13. dxe6 {[%emt 0:00:33]} fxe6 {[%emt 0:00:13]} 14. Qd3 {[%emt 0:00:35]} Bf6 {[%emt 0:02:40]} 15. Bh3 {[%emt 0:01:16]} Qe7 {[%emt 0:01:31]} 16. e4 {[%emt 0:01:29]} O-O {[%emt 0:01:11]} 17. Bg2 {[%emt 0:00:59]} Rad8 {[%emt 0:00:07]} 18. Bf4 {[%emt 0:00:27]} g5 {[%emt 0:01:25]} 19. Be3 {[%emt 0:00:08]} Qg7 {[%emt 0:00:52]} 20. Rac1 {[%emt 0:00:23]} g4 {[%emt 0:00:27]} 21. Nd2 {[%emt 0:00:16]} Nc6 {[%emt 0:00:02]} 22. f4 {[%emt 0:00:24]} gxf3 {[%emt 0:00:07]} 23. Nxf3 {[%emt 0:00:06]} Ne5 {[%emt 0:00:19]} 24. Nxe5 {[%emt 0:00:23]} Bxe5 {[%emt 0:00:02]} 25. Rf1 {[%emt 0:00:18]} Rxf1+ {[%emt 0:00:16]} 26. Rxf1 {[%emt 0:00:52]} Bxc3 {[%emt 0:00:46]} 27. Bh3 {[%emt 0:00:03]} Bc8 {[%emt 0:00:54]} 28. Kg2 {[%emt 0:02:39]} Bd4 {[%emt 0:00:24]} 29. Bc1 {[%emt 0:00:22]} Rf8 {[%emt 0:00:21]} 30. Rf4 {[%emt 0:00:26]} Rxf4 {[%emt 0:01:01]} 31. Bxf4 {[%emt 0:00:02]} Qf6 {[%emt 0:00:27]} 32. Qf3 {[%emt 0:00:11]} Be5 {[%emt 0:00:44]} 33. Qg4+ {[%emt 0:00:13]} Qg6 {[%emt 0:00:33]} 34. Qxg6+ {[%emt 0:01:51]} hxg6 {[%emt 0:00:00]} 35. Bxe5 {[%emt 0:00:02]} dxe5 {[%emt 0:00:02]} 36. Kf3 {[%emt 0:00:07]} Kf7 {[%emt 0:00:03]} 37. Bf1 {[%emt 0:00:24]} Bd7 {[%emt 0:00:02]} 38. h4 {[%emt 0:00:06]} Ba4 {[%emt 0:00:21]} 39. Be2 {[%emt 0:00:10]} a6 {[%emt 0:00:23]} 40. Ke3 {[%emt 0:00:04]} b5 {[%emt 0:00:19]} 41. Kd3 {[%emt 0:00:46]} b4 {[%emt 0:00:23]} 42. g4 {[%emt 0:00:28]} a5 {[%emt 0:00:16]} 43. g5 {[%emt 0:00:11]} Bc6 {[%emt 0:00:09]} 44. Bd1 {[%emt 0:00:09]} Ke7 {[%emt 0:00:13]} 45. Bc2 {[%emt 0:00:02]} Kd6 {[%emt 0:00:22]} 46. Bd1 {[%emt 0:00:06]} Be8 {[%emt 0:00:16]} 47. Bc2 {[%emt 0:00:03]} a4 {[%emt 0:00:11]} 48. Bd1 {[%emt 0:00:05]} Kc7 {[%emt 0:00:02]} 49. Bc2 {[%emt 0:00:18]} Bc6 {[%emt 0:00:24]} 50. Bd1 {[%emt 0:00:04]} Kd8 {[%emt 0:00:19]} 51. Bc2 {[%emt 0:00:07]} Be8 {[%emt 0:00:09]} 52. Bd1 {[%emt 0:00:04]} Kc7 {[%emt 0:00:04]} 53. Bc2 {[%emt 0:00:03]} Kb6 {[%emt 0:00:01]} 54. Bd1 {[%emt 0:00:07]} Ka5 {[%emt 0:00:09]} 55. Bc2 {[%emt 0:00:07]} b3 {[%emt 0:00:26]} 56. axb3 {[%emt 0:00:21]} axb3 {[%emt 0:00:30]} 57. Bxb3 {[%emt 0:00:02]} Kb4 {[%emt 0:00:00]} 58. Bd1 {[%emt 0:00:29]} Bf7 {[%emt 0:00:12]} 59. Bg4 {[%emt 0:00:12]} Kb3 {[%emt 0:00:11]} 60. Bh3 {[%emt 0:00:05]} Kb2 {[%emt 0:00:11]} 61. Kd2 {[%emt 0:00:02]} Kb3 {[%emt 0:00:04]} 62. Kd3 {[%emt 0:00:02]} Kb2 {[%emt 0:00:04]} 63. Kd2 {[%emt 0:00:01]} Kb3 {[%emt 0:00:14]} 64. Kd3 {[%emt 0:00:01]} Kb2 1/2-1/2

[Event "RUS-ch Women Rapid 2019"]
[Site "Sochi"]
[Date "2019.10.16"]
[Round "10.12"]
[White "Shafigullina, Zarina"]
[Black "Trapeznikova, Darya"]
[Result "1-0"]
[ECO "D02"]
[WhiteElo "2295"]
[BlackElo "2052"]
[Annotator "NA"]
[PlyCount "103"]
[EventDate "2019.10.15"]
[EventType "swiss"]
[EventCountry "RUS"]
[SourceTitle "playchess.com"]
[Source "ChessBase"]
[SourceQuality "1"]
[TimeControl "900+10"]

1. d4 {[%emt 0:00:00]} d5 {[%emt 0:00:00]} 2. Nf3 {[%emt 0:00:00]} c6 {[%emt 0:00:00]} 3. g3 {[%emt 0:00:00]} Nf6 {[%emt 0:00:08]} 4. Bg2 {[%emt 0:00:05]} e6 {[%emt 0:00:02]} 5. O-O {[%emt 0:00:04]} Bd6 {[%emt 0:00:27]} 6. Nbd2 {[%emt 0:00:20]} O-O {[%emt 0:00:12]} 7. c4 {[%emt 0:00:05]} Nbd7 {[%emt 0:00:20]} 8. Re1 {[%emt 0:00:08]} b6 {[%emt 0:00:16]} 9. Qc2 {[%emt 0:00:04]} Bb7 {[%emt 0:00:07]} 10. b3 {[%emt 0:00:47]} Rc8 {[%emt 0:02:11]} 11. e4 {[%emt 0:01:01]} dxe4 {[%emt 0:00:08]} 12. Nxe4 {[%emt 0:00:01]} Nxe4 {[%emt 0:00:13]} 13. Qxe4 {[%emt 0:00:03]} Nf6 {[%emt 0:00:07]} 14. Qe2 {[%emt 0:00:46]} c5 {[%emt 0:00:29]} 15. Rd1 {[%emt 0:00:01]} Qe7 {[%emt 0:00:48]} 16. Bb2 {[%emt 0:00:11]} Rfd8 {[%emt 0:00:23]} 17. Rd2 {[%emt 0:00:47]} cxd4 {[%emt 0:00:23]} 18. Nxd4 {[%emt 0:00:50]} Bxg2 {[%emt 0:00:18]} 19. Kxg2 {[%emt 0:00:01]} Bc5 {[%emt 0:01:34]} 20. Rad1 {[%emt 0:00:26]} Qb7+ {[%emt 0:03:17]} 21. Qf3 {[%emt 0:00:33]} Qxf3+ {[%emt 0:00:16]} 22. Kxf3 {[%emt 0:00:06]} Bb4 {[%emt 0:00:20]} 23. Re2 {[%emt 0:00:36]} Rd7 {[%emt 0:00:53]} 24. a3 {[%emt 0:00:56]} Bc5 {[%emt 0:00:05]} 25. Red2 {[%emt 0:00:09]} Rcd8 {[%emt 0:00:23]} 26. b4 {[%emt 0:01:17]} Be7 {[%emt 0:00:26]} 27. Nb3 {[%emt 0:01:07]} Rxd2 {[%emt 0:00:06]} 28. Rxd2 {[%emt 0:00:01]} Rxd2 {[%emt 0:00:39]} 29. Nxd2 {[%emt 0:00:02]} Kf8 {[%emt 0:00:06]} 30. Nb3 {[%emt 0:00:10]} Ke8 {[%emt 0:00:08]} 31. Nd4 {[%emt 0:00:12]} Kd7 {[%emt 0:00:05]} 32. h3 {[%emt 0:00:39]} a6 {[%emt 0:00:48]} 33. Ke3 {[%emt 0:00:43]} h5 {[%emt 0:00:23]} 34. Nf3 {[%emt 0:00:17]} Ke8 {[%emt 0:03:05]} 35. Ne5 {[%emt 0:00:59]} g6 {[%emt 0:00:13]} 36. Bd4 {[%emt 0:02:13]} a5 {[%emt 0:00:37]} 37. Nc6 {[%emt 0:01:27]} axb4 {[%emt 0:00:21]} 38. Nxe7 {[%emt 0:02:22]} Kxe7 {[%emt 0:00:01]} 39. Bxf6+ {[%emt 0:00:02]} Kxf6 {[%emt 0:00:01]} 40. axb4 {[%emt 0:00:01]} Ke5 {[%emt 0:00:05]} 41. f4+ {[%emt 0:00:12]} Kd6 {[%emt 0:00:01]} 42. Ke4 {[%emt 0:00:02]} f6 {[%emt 0:00:04]} 43. Kd4 {[%emt 0:02:01]} Kc6 {[%emt 0:00:36]} 44. g4 {[%emt 0:00:01]} hxg4 {[%emt 0:00:02]} 45. hxg4 {[%emt 0:00:01]} Kd6 {[%emt 0:00:12]} 46. g5 {[%emt 0:00:30]} e5+ {[%emt 0:00:33]} 47. fxe5+ {[%emt 0:00:06]} fxe5+ {[%emt 0:00:01]} 48. Ke4 {[%emt 0:00:01]} Ke6 {[%emt 0:00:02]} 49. c5 {[%emt 0:00:08]} b5 {[%emt 0:00:21]} 50. c6 {[%emt 0:00:01]} Kd6 {[%emt 0:00:02]} 51. c7 {[%emt 0:00:01]} Kxc7 {[%emt 0:00:01]} 52. Kxe5 {[%emt 0:00:01]} 1-0